Cogmind - Beta 14 @@@ ROGUE MODE // 2024.11.25 @ 10:03:35 Player: WazdakkaGutsmek Result: Destroyed by H-61 Shepherd with Heavy Assault Cannon Performance ------------- Evolutions (3) 1500 Regions Visited (10) 2000 Robots Destroyed (111) 555 Value Destroyed (4983) 4983 Prototype IDs (5) 100 Alien Tech Used (0) 0 Bonus (3800) 3800 TOTAL SCORE: 12938 Bonus ------- High Alert Combat Kills 461 Follower Combat Kills 539 Entered Garrisons 800 Used RIF Installer 2000 Cogmind --------- Core Integrity 0/700 Matter 290/300 Energy 100/100 System Corruption 2% Temperature Cool (0) Movement Hovering (500) Ox6 Location -7/Garrison Parts ------- > --- POWER (1) -------- (None) > --- PROPULSION (5) --- Combat Airjet > --- UTILITY (5) ------ Huge Storage Unit Relay Coupler [Grunt] (19) Relay Coupler [Hunter] (19) > --- WEAPON (2) ------- Segregator > --- INVENTORY (25) --- Backup Power III Light Treads Armored Treads Combat Airjet Combat Airjet Improved Cooling System Hardened Heavy Armor Plating Improved Medium Armor Plating Relay Coupler [Hunter] (12) Relay Coupler [Behemoth] (9) Mini Grenade Launcher Improved Remote Datajack Multitool Peak State ------------ > --- POWER ------------ Angular Momentum Engine > --- PROPULSION ------- Combat Airjet Combat Airjet Combat Airjet Combat Airjet Combat Airjet > --- UTILITY ---------- Huge Storage Unit Improved Light Armor Plating Relay Coupler [NC] Relay Coupler [Swarmer] Relay Coupler [Hunter] > --- WEAPON ----------- Lightning Gun Heavy Machine Gun > --- INVENTORY -------- Backup Power III Light Treads Armored Treads Combat Airjet Combat Airjet Improved Cooling System Medium Armor Plating Hardened Heavy Armor Plating Improved Medium Armor Plating Relay Coupler [Grunt] Relay Coupler [Hunter] Relay Coupler [Behemoth] Mini Grenade Launcher Remote Datajack Improved Remote Datajack Multitool [Rating: 58] Favorites ----------- Power Ion Engine Engine Ion Engine Propulsion Light Treads Treads Light Treads Leg Aluminum Leg Wheel Armored Huge Wheel Hover Unit Combat Airjet Utility Large Storage Unit Device Improved Cooling System Storage Large Storage Unit Hackware Relay Coupler [Hunter] Protection Hardened Light Armor Plating Weapon Mini Grenade Launcher Energy Gun Heavy Laser Energy Cannon Advanced Beam Cannon Ballistic Gun Assault Rifle Ballistic Cannon Battle Cannon Launcher Mini Grenade Launcher Special Weapon Multitool Slashing Weapon Blade Saw Special Melee Weapon Improved Datajack Build | -11 -10 -10 -8 -8 -8 -8 -7 -7 -7 -7 ------- Run | Yrd Mat Sub Mat Gar Mat Gar Fac Gar Fac Gar Slots Evolved 6 | . . . 4 . . . 2 . . . Power . | . . . . . . . . . . . Propulsion 3 | . . . 2 . . . 1 . . . Utility 3 | . . . 2 . . . 1 . . . Weapon . | . . . . . . . . . . . Parts Attached 138 | . 6 16 19 7 12 9 12 17 12 28 Power 7 | . . 1 2 . 1 . . 1 . 2 Engine 7 | . . 1 2 . 1 . . 1 . 2 Core . | . . . . . . . . . . . Reactor . | . . . . . . . . . . . Propulsion 26 | . 2 2 5 1 5 . 1 2 . 8 Treads 18 | . 2 2 5 1 5 . . 2 . 1 Leg . | . . . . . . . . . . . Wheel 1 | . . . . . . . 1 . . . Hover 7 | . . . . . . . . . . 7 Flight . | . . . . . . . . . . . Utility 36 | . 2 4 6 1 1 4 3 6 3 6 Device 8 | . . 1 3 . . 2 1 . 1 . Storage 2 | . 1 . . . . . . . 1 . Processor . | . . . . . . . . . . . Hackware 9 | . . . . . . 1 1 4 1 2 Protection 17 | . 1 3 3 1 1 1 1 2 . 4 Artifact . | . . . . . . . . . . . Weapon 69 | . 2 9 6 5 5 5 8 8 9 12 Energy Gun 21 | . 1 4 2 . 1 2 2 2 3 4 Energy Cannon 4 | . . . 2 2 . . . . . . Ballistic Gun 7 | . . . 1 1 2 . . . . 3 Ballistic Cannon 10 | . . 4 . . . . 2 2 2 . Launcher 4 | . 1 1 1 . . 1 . . . . Special Weapon 14 | . . . . 2 2 1 2 . 4 3 Impact Weapon . | . . . . . . . . . . . Slashing Weapon 2 | . . . . . . . . . . 2 Piercing Weapon . | . . . . . . . . . . . Special Melee Weapon 7 | . . . . . . 1 2 4 . . Unidentified Prototypes 5 | . . . 5 . . . . . . . Parts Lost 38 | . . 4 6 2 1 4 . 5 3 13 Power 6 | . . 1 . . 1 . . 1 1 2 Propulsion 12 | . . 2 2 . . 1 . 3 2 2 Utility 10 | . . . 2 2 . 1 . 1 . 4 Weapon 10 | . . 1 2 . . 2 . . . 5 Highest Loss Streak 5 | . . 2 2 1 1 3 . 3 3 5 To Critical Strikes . | . . . . . . . . . . . Average Slot Usage (%) 91 | . 94 99 75 95 95 94 85 83 77 80 Engine 10 | . 14 13 9 9 9 9 7 6 5 3 Treads 24 | . 26 27 19 36 36 31 23 16 12 5 Wheel 1 | . . . . . . . 3 7 5 . Hover 1 | . . . . . . . . . . 18 Device 4 | . . . 5 9 9 9 7 7 9 4 Storage 10 | . 14 14 9 9 9 9 7 7 7 7 Hackware 3 | . . . . . . 1 12 9 15 18 Protection 11 | . 9 13 14 14 14 16 7 10 4 6 Energy Gun 7 | . 14 3 6 3 . 10 9 6 10 11 Energy Cannon 1 | . . . 6 9 9 3 . . . . Ballistic Gun 3 | . 13 . 1 5 8 . . . . 1 Ballistic Cannon 4 | . . 11 . . . . 2 6 3 . Launcher 3 | . . 12 . . . 2 . . . . Peak Build Rating 58 | . 11 14 30 29 33 33 39 44 46 58 Average Rating 22 | . 9 12 17 27 29 29 33 40 40 41 On Entrance 23 | 6 6 11 12 27 27 33 28 39 43 29 Naked Turns . | . . . . . . . . . . . Heaviest Build 106 | 13 34 37 54 44 46 46 50 56 106 105 Greatest Support 83 | 20 40 40 83 83 83 83 60 40 40 60 Greatest Overweight (x) 7 | . . . 2 . . . 1 2 4 7 Average Overweight (x) . | . . . . . . . . 1 1 1 Largest Inventory Capacity 25 | . 15 15 15 15 15 15 15 15 25 25 Average Capacity 15 | . 14 15 15 15 15 15 15 15 18 25 Most Carried 21 | . 13 15 11 15 15 15 15 15 16 21 Average Carried 12 | . 11 12 7 14 14 13 14 13 14 16 Final Capacity 25 | 8 15 15 15 15 15 15 15 15 25 25 Final Carried 15 | 6 13 11 11 15 15 12 15 13 15 14 Class Distribution -------------------- 47% | Mutant 36% | Bothacker-Mutant 15% | Scavenger-Mutant Dominant Class ---------------- Mutant | -10/Materials Mutant | -10/Subcaves Scavenger-Mutant | -8/Materials Scavenger-Mutant | -8/Garrison Bothacker-Mutant | -8/Materials Bothacker-Mutant | -8/Garrison Bothacker-Mutant | -7/Factory Bothacker-Mutant | -7/Garrison Bothacker-Mutant | -7/Factory Bothacker-Mutant | -7/Garrison Resources | -11 -10 -10 -8 -8 -8 -8 -7 -7 -7 -7 ----------- Run | Yrd Mat Sub Mat Gar Mat Gar Fac Gar Fac Gar Matter Collected 3287 | 200 243 478 471 191 278 163 158 533 . 572 Remotely . | . . . . . . . . . . . Salvage Created 4025 | . 562 324 839 579 720 134 63 212 . 592 Parts 231 | . 44 20 38 33 46 10 1 11 . 28 Haulers Intercepted 5 | . 1 . 2 . 2 . . . . . Recyclers Shooed 1 | . . . . . 1 . . . . . Parts Field Recycled . | . . . . . . . . . . . Retrieved Matter . | . . . . . . . . . . . Parts Self-Destructed 9 | . . 9 . . . . . . . . Prevented . | . . . . . . . . . . . Kills | -11 -10 -10 -8 -8 -8 -8 -7 -7 -7 -7 ------- Run | Yrd Mat Sub Mat Gar Mat Gar Fac Gar Fac Gar Combat Hostiles Destroyed 98 | . 15 13 13 15 16 9 1 8 . 8 Guns 51 | . 14 2 3 6 10 5 1 3 . 7 Cannons 29 | . . 3 8 8 5 . . 5 . . AOE 12 | . . 8 1 . . 3 . . . . Classes Destroyed 17 | . 6 3 3 2 . . . . . 3 Worker 5 | . 2 . 3 . . . . . . . Tunneler 1 | . 1 . . . . . . . . . Hauler 5 | . 1 . 2 . 2 . . . . . Recycler 1 | . . . 1 . . . . . . . Operator 1 | . 1 . . . . . . . . . Swarmer 30 | . 6 2 . 3 6 6 . 5 . 2 Cutter 2 | . . . . . . . . . . 2 Grunt 36 | . 9 2 7 8 7 . . 2 . 1 Sentry 12 | . . . 5 . 3 3 1 . . . Demolisher 1 | . . . . 1 . . . . . . Specialist 2 | . . . . . . . . . . 2 Hunter 3 | . . . 1 2 . . . . . . Programmer 2 | . . . . 1 . . . 1 . . Heavy 1 | . . . . . . . . . . 1 Artisan 1 | . . 1 . . . . . . . . Cobbler 1 | . . 1 . . . . . . . . Subdweller 9 | . . 9 . . . . . . . . Best Kill Streak 6 | . 6 2 6 3 5 5 1 2 . 2 Combat Bots Only 6 | . 3 2 6 3 4 5 1 2 . 2 Max Kills in Single Turn 2 | . 2 1 2 1 2 2 1 1 . 1 Gunslinging 1 | . 1 . . . . . . . . . Exploded 1 | . . 1 1 . . 1 . . . . Melee . | . . . . . . . . . . . Uniques/NPCs Destroyed . | . . . . . . . . . . . Combat | -11 -10 -10 -8 -8 -8 -8 -7 -7 -7 -7 -------- Run | Yrd Mat Sub Mat Gar Mat Gar Fac Gar Fac Gar Hostile Shots Fired 708 | . 65 60 78 78 67 70 33 139 27 91 Missed 198 | . 13 16 13 25 19 18 12 59 11 12 Damage Taken 8144 | . 560 743 1005 764 647 652 245 1255 227 2046 Core 1180 | . 101 119 75 92 26 36 21 144 11 555 Absorbed by Shields . | . . . . . . . . . . . Regen/Repaired (Parts) 311 | . . . . . . . 274 . . 37 Core Remaining (%) 56 | 100 . 12 . . . 58 . . . . Volleys Fired 454 | . 57 54 64 50 39 26 18 50 4 92 Largest 2 | . 2 2 2 2 2 2 2 2 2 2 Hottest 137 | . 80 95 136 129 96 137 134 117 124 124 Shots Fired 754 | . 113 87 92 100 78 46 24 100 6 108 Gun 462 | . 112 25 44 50 39 31 12 50 3 96 Cannon 233 | . . 29 44 50 39 8 12 50 1 . Launcher 45 | . 1 33 4 . . 7 . . . . Special 14 | . . . . . . . . . 2 12 Kinetic 251 | . 57 29 8 26 39 . 12 50 1 29 Thermal 412 | . 55 10 80 74 39 39 12 50 2 51 Explosive 45 | . 1 33 4 . . 7 . . . . Electromagnetic 32 | . . 15 . . . . . . 1 16 Robot Hit Streak 14 | . 10 8 14 9 6 11 12 14 4 14 Robot Miss Streak 8 | . 3 4 2 3 2 4 . 8 2 4 Penetration Max 1 | . . . . 1 1 . . . . . Secondary Targets 2 | . 2 . . . . . . . . . Max Gunslinging Chain 1 | . 1 . . . . . . . . . Shots Hit Robots 467 | . 68 43 66 58 48 24 14 61 4 81 Core Hits 206 | . 34 28 32 26 26 16 4 14 . 26 Critical Kills 4 | . . . . 1 2 1 . . . . Critical Parts Destroyed 1 | . . . . 1 . . . . . . Critical Strikes 23 | . 4 1 3 4 2 1 2 2 . 4 Burn 15 | . 4 . 3 2 . . 2 . . 4 Meltdown 3 | . . . . 1 1 1 . . . . Destroy 2 | . . . . 1 1 . . . . . Blast 3 | . . 1 . . . . . 2 . . Melee Attacks 21 | . . . . . . 2 3 13 . 3 Impact . | . . . . . . . . . . . Slashing 3 | . . . . . . . . . . 3 Piercing . | . . . . . . . . . . . Sneak Attacks 8 | . . . . . . 1 3 4 . . Combat Hostiles 1 | . . . . . . 1 . . . . Follow-up Attacks . | . . . . . . . . . . . Damage Inflicted 9902 | . 927 1703 1487 1210 1123 642 199 1223 35 1353 Guns 5367 | . 897 243 490 590 650 354 199 571 35 1338 Cannons 2648 | . . 231 630 620 473 42 . 652 . . Explosions 1865 | . 23 1229 367 . . 246 . . . . Melee 15 | . . . . . . . . . . 15 Ramming 7 | . 7 . . . . . . . . . Kinetic 2679 | . 399 231 113 295 650 . . 652 . 339 Thermal 4994 | . 498 87 1007 915 473 396 199 571 18 830 Explosive 1821 | . 23 1185 367 . . 246 . . . . Electromagnetic 386 | . . 200 . . . . . . 17 169 Impact . | . . . . . . . . . . . Slashing 15 | . . . . . . . . . . 15 Piercing . | . . . . . . . . . . . Highest Corruption 3 | . 2 2 . 1 1 2 . 3 3 2 Average Corruption 1 | . 2 1 . 1 1 1 . 2 2 2 Corruption Purged 5 | . . 2 . . . . . . 3 . Corruption Blocked . | . . . . . . . . . . . Effects 67 | . 16 24 . 2 3 7 . 3 10 2 Message Errors 13 | . 1 4 . 1 1 2 . 2 1 1 Matter Fused 23 | . 6 8 . 1 2 2 . 1 3 . Heat Flow Errors 8 | . 1 6 . . . . . . 1 . Energy Discharges 9 | . 3 3 . . . 2 . . 1 . Parts Rejected 1 | . . . . . . . . . . 1 Data Loss (minor) 5 | . 3 1 . . . . . . 1 . Data Loss (major) 3 | . . . . . . 1 . . 2 . Misfires 3 | . 1 2 . . . . . . . . Alerts 2 | . 1 . . . . . . . 1 . Overload Shots . | . . . . . . . . . . . Overflow Damage 70 | . . . 9 . 3 1 . 57 . . Projectiles 61 | . . . . . 3 1 . 57 . . Explosions 9 | . . . 9 . . . . . . . Melee . | . . . . . . . . . . . Knockbacks 10 | . . 3 . . . . . 7 . . Impact . | . . . . . . . . . . . Kinetic 10 | . . 3 . . . . . 7 . . Secondary . | . . . . . . . . . . . Self-Inflicted Damage 69 | . . 65 . . . 4 . . . . Shots 4 | . . 3 . . . 1 . . . . Rammed 3 | . 3 . . . . . . . . . Targets Rammed 3 | . 3 . . . . . . . . . Kicked . | . . . . . . . . . . . Crushed . | . . . . . . . . . . . Highest Temperature 433 | . 254 273 433 180 38 189 144 2 70 144 Average Temperature 95 | . 78 98 155 71 15 101 66 2 44 32 Received Heat Transfer 2113 | . 273 391 468 144 315 171 69 225 48 9 Effects 7 | . . . 7 . . . . . . . Shutdowns 1 | . . . 1 . . . . . . . Energy Bleed 2 | . . . 2 . . . . . . . Interference 4 | . . . 4 . . . . . . . Siege Activations . | . . . . . . . . . . . Robots Corrupted 1 | . . . . . . . . . . 1 Combat Hostiles 1 | . . . . . . . . . . 1 Parts Fried 1 | . . . . . . . . . . 1 Impact Corruptions . | . . . . . . . . . . . Robots Melted 5 | . 1 . 1 1 1 1 . . . . Combat Hostiles 5 | . 1 . 1 1 1 1 . . . . Parts Melted 18 | . . . 2 6 1 2 2 2 . 3 Heat Transferred 11197 | . 1693 161 2368 1795 851 740 555 1073 37 1924 Parts Sabotaged . | . . . . . . . . . . . Parts Stolen . | . . . . . . . . . . . Parts Stripped . | . . . . . . . . . . . Power Chain Reactions 1 | . . 1 . . . . . . . . Alert | -11 -10 -10 -8 -8 -8 -8 -7 -7 -7 -7 ------- Run | Yrd Mat Sub Mat Gar Mat Gar Fac Gar Fac Gar Peak Influence 886 | . 190 . 347 833 803 886 464 832 463 369 Initial 482 | . . . . 171 405 482 464 218 436 233 Average 366 | . 70 . 167 515 576 745 402 595 415 255 Maximum Alert Level 3 | . . . 1 3 3 3 2 3 2 1 Low Security (%) 30 | . 100 . 64 11 . . . . . . Level 1 23 | . . . 35 12 . . 36 16 30 99 Level 2 33 | . . . . 54 85 39 64 43 69 . Level 3 13 | . . . . 21 15 60 . 39 . . Level 4 . | . . . . . . . . . . . Level 5 . | . . . . . . . . . . . High Security . | . . . . . . . . . . . Max Security . | . . . . . . . . . . . Squads Dispatched 5 | . 2 . 1 . 2 . . . . . Investigation . | . . . . . . . . . . . Extermination . | . . . . . . . . . . . Reinforcement 3 | . 2 . . . 1 . . . . . Assault . | . . . . . . . . . . . Garrison 2 | . . . 1 . 1 . . . . . Intercept . | . . . . . . . . . . . Searches Triggered . | . . . . . . . . . . . Construction Impeded . | . . . . . . . . . . . Haulers Reinforced . | . . . . . . . . . . . Active Scanning Responses . | . . . . . . . . . . . Cargo Convoy Interrupts . | . . . . . . . . . . . Stealth | -11 -10 -10 -8 -8 -8 -8 -7 -7 -7 -7 --------- Run | Yrd Mat Sub Mat Gar Mat Gar Fac Gar Fac Gar Distress Signals 5 | . 2 . . . 3 . . . . . Communications Jammed . | . . . . . . . . . . . Distress Signals . | . . . . . . . . . . . Times Spotted 165 | . 27 17 18 16 24 12 2 29 2 18 Peak Tracking Total 6 | . 4 4 4 4 5 5 1 6 1 6 Tactical Retreats 17 | . . 2 . 1 5 2 . 3 . 4 Traps | -11 -10 -10 -8 -8 -8 -8 -7 -7 -7 -7 ------- Run | Yrd Mat Sub Mat Gar Mat Gar Fac Gar Fac Gar Traps Triggered 13 | . 1 . . 1 . 1 . 7 2 1 Indirectly . | . . . . . . . . . . . Trap Hack Attempts . | . . . . . . . . . . . Triggered . | . . . . . . . . . . . Disarmed . | . . . . . . . . . . . Reprogrammed . | . . . . . . . . . . . Reused . | . . . . . . . . . . . Traps Extracted . | . . . . . . . . . . . Installed . | . . . . . . . . . . . Triggered . | . . . . . . . . . . . Machines | -11 -10 -10 -8 -8 -8 -8 -7 -7 -7 -7 ---------- Run | Yrd Mat Sub Mat Gar Mat Gar Fac Gar Fac Gar Machines Disabled 14 | . . . 2 3 . 1 . 6 2 . Max in Single Turn 2 | . . . 1 1 . 1 . 2 . . Garrison Relay 7 | . . . . 3 . 1 . 3 . . Machines Repaired . | . . . . . . . . . . . Machines Dismantled . | . . . . . . . . . . . Machines Sabotaged . | . . . . . . . . . . . Overloaded Fab Kills . | . . . . . . . . . . . Hacking | -11 -10 -10 -8 -8 -8 -8 -7 -7 -7 -7 --------- Run | Yrd Mat Sub Mat Gar Mat Gar Fac Gar Fac Gar Machines Accessed 21 | . 5 . 4 2 3 2 2 . 3 . Terminals 16 | . 5 . 3 2 2 2 1 . 1 . Fabricators 1 | . . . . . . . . . 1 . Repair Stations . | . . . . . . . . . . . Recycling Units . | . . . . . . . . . . . Scanalyzers . | . . . . . . . . . . . Garrison Access 4 | . . . 1 . 1 . 1 . 1 . Total Hacks 33 | . 10 . 7 4 3 4 2 . 3 . Successful 13 | . 5 . 2 . 2 1 1 . 2 . Failed 20 | . 5 . 5 4 1 3 1 . 1 . Catastrophic 1 | . . . . . . 1 . . . . Database Lockouts . | . . . . . . . . . . . Manual 25 | . 10 . 5 4 2 2 1 . 1 . Terminals 27 | . 10 . 5 4 2 4 1 . 1 . Fabricators 1 | . . . . . . . . . 1 . Repair Stations . | . . . . . . . . . . . Recycling Units . | . . . . . . . . . . . Scanalyzers . | . . . . . . . . . . . Garrison Access 5 | . . . 2 . 1 . 1 . 1 . Terminal Hacks 2 | . . . . . 1 1 . . . . Garrison Index 1 | . . . . . 1 . . . . . Garrison Registry 1 | . . . . . . 1 . . . . Fabricator Hacks 1 | . . . . . . . . . 1 . Build 1 | . . . . . . . . . 1 . Repair Station Hacks . | . . . . . . . . . . . Recycling Unit Hacks . | . . . . . . . . . . . Scanalyzer . | . . . . . . . . . . . Garrison Access Hacks 4 | . . . 1 . 1 . 1 . 1 . Unlock Access 4 | . . . 1 . 1 . 1 . 1 . Unauthorized Hacks 6 | . 5 . 1 . . . . . . . Terminals 6 | . 5 . 1 . . . . . . . Botnet 1 | . 1 . . . . . . . . . Skim 5 | . 4 . 1 . . . . . . . Fabricators . | . . . . . . . . . . . Repair Stations . | . . . . . . . . . . . Recycling Units . | . . . . . . . . . . . Scanalyzers . | . . . . . . . . . . . Garrison Access . | . . . . . . . . . . . Data Cores Recovered 1 | . . . . . . . . . 1 . Used . | . . . . . . . . . . . Hacking Detections 8 | . 2 . 4 . 1 1 . . . . Full Trace Events 4 | . . . . 2 . 2 . . . . Feedback Events 1 | . . . . . . 1 . . . . Corruption 1 | . . . . . . 1 . . . . Feedback Blocked . | . . . . . . . . . . . Robot Schematics Acquired . | . . . . . . . . . . . Robots Built 1 | . . . . . . . . . 1 . Authchips . | . . . . . . . . . . . Time 116 | . . . . . . . . . 116 . Total Robot Build Rating 3 | . . . . . . . . . 3 . Part Schematics Acquired . | . . . . . . . . . . . Parts Built . | . . . . . . . . . . . Authchips . | . . . . . . . . . . . Time . | . . . . . . . . . . . Total Part Build Rating . | . . . . . . . . . . . Parts Repaired . | . . . . . . . . . . . Time . | . . . . . . . . . . . Parts Recycled . | . . . . . . . . . . . Recycled Matter . | . . . . . . . . . . . Retrieved Matter . | . . . . . . . . . . . Retrieved Components . | . . . . . . . . . . . Parts Scanalyzed . | . . . . . . . . . . . Part Schematics Acquired . | . . . . . . . . . . . Parts Damaged . | . . . . . . . . . . . Bothacking | -11 -10 -10 -8 -8 -8 -8 -7 -7 -7 -7 ------------ Run | Yrd Mat Sub Mat Gar Mat Gar Fac Gar Fac Gar Used RIF Installer 4 | . . . . 1 . 1 . 1 . 1 Hotswap 1 | . . . . . . 1 . . . . Command Fork 1 | . . . . . . . . 1 . . Robot Detection 1 | . . . . . . . . . . 1 Robots Hacked 15 | . . . . . . 2 2 7 1 3 Non-combat 3 | . . . . . . . 2 . 1 . Combat 12 | . . . . . . 2 . 7 . 3 Robot Hacks Applied 16 | . . . . . . 2 2 7 1 4 parse_system 1 | . . . . . . . . . . 1 drop_inventory 1 | . . . . . . . 1 . . . link_complan 2 | . . . . . . . . 2 . . overwrite_iff 2 | . . . . . . 1 . . . 1 formatsys_low 2 | . . . . . . . 1 . 1 . formatsys_high 8 | . . . . . . 1 . 5 . 2 Relay Couplers Released 31 | . . . . 15 . 3 . 13 . . Machine Destruction 28 | . . . . 12 . 3 . 13 . . Programmers 3 | . . . . 3 . . . . . . Attached 9 | . . . . . . 1 1 4 1 2 Fabnet Peak Effective % . | . . . . . . . . . . . Robots Rewired 4 | . . . . . . . . . . 4 Allies Hacked 3 | . . . . . . . . 3 . . Hacks Repelled . | . . . . . . . . . . . Allies | -11 -10 -10 -8 -8 -8 -8 -7 -7 -7 -7 -------- Run | Yrd Mat Sub Mat Gar Mat Gar Fac Gar Fac Gar Total Allies 19 | . . . . 1 . 2 1 6 2 7 Largest Group 5 | . . . . 1 . 1 2 5 3 3 Highest-Rated Group 110 | . . . . 31 . 29 30 110 90 87 Highest-Rated Ally 32 | . . . . 31 . 29 16 32 32 32 Total Orders 2 | . . . . . . . 1 . . 1 AID 2 | . . . . . . . 1 . . 1 Ally Attacks 104 | . . . . 8 . 4 1 67 4 20 Total Damage 1986 | . . . . 64 . 55 17 1282 300 268 Kills 17 | . . . . . . 1 . 12 3 1 Allies Corrupted . | . . . . . . . . . . . Allies Melted 1 | . . . . . . . . . . 1 Intel | -11 -10 -10 -8 -8 -8 -8 -7 -7 -7 -7 ------- Run | Yrd Mat Sub Mat Gar Mat Gar Fac Gar Fac Gar Robot Analysis Total . | . . . . . . . . . . . Derelict Logs Recovered . | . . . . . . . . . . . Drone Launches . | . . . . . . . . . . . Drone Recoveries . | . . . . . . . . . . . Exploration | -11 -10 -10 -8 -8 -8 -8 -7 -7 -7 -7 ------------- Run | Yrd Mat Sub Mat Gar Mat Gar Fac Gar Fac Gar Turns Passed 10813 | . 1826 3163 550 1243 520 433 625 1022 579 852 Spaces Moved 4800 | 1 456 1759 191 662 210 204 339 534 239 205 Core . | . . . . . . . . . . . Treads 3870 | . 404 1759 191 662 210 204 171 102 131 36 Legs 53 | 1 52 . . . . . . . . . Wheels 708 | . . . . . . . 168 432 108 . Hover 169 | . . . . . . . . . . 169 Flight . | . . . . . . . . . . . Fastest Speed 115 | 120 120 160 160 160 160 160 115 115 115 138 Average Speed 161 | 120 155 160 186 160 160 160 137 140 218 201 Slowest Speed 610 | 120 160 160 320 160 160 160 160 320 480 610 Overloaded Moves . | . . . . . . . . . . . Propulsion Burnouts . | . . . . . . . . . . . Robots Hopped . | . . . . . . . . . . . Cave-ins Triggered . | . . . . . . . . . . . Exploration Rate (%) 37 | 2 91 84 22 70 20 40 9 45 9 17 Regions Visited 10 Branch Regions 1 Pre-discovered Areas . | . . . . . . . . . . . Known Exits Taken 4 | . . . 1 . 1 . 1 . 1 . Unknown Exits Taken 3 | 1 1 1 . . . . . . . . Scrap Searched 6 | . . 6 . . . . . . . . Spaces Dug 1 | . . . . . . . 1 . . . Terrain Destroyed 282 | . 4 222 23 2 . 29 1 . 1 . Melee . | . . . . . . . . . . . Projectile 4 | . . . . 2 . . 1 . 1 . AOE 278 | . 4 222 23 . . 29 . . . . Terrain Rammed . | . . . . . . . . . . . Walls Destroyed . | . . . . . . . . . . . Machines Disabled . | . . . . . . . . . . . Actions | -11 -10 -10 -8 -8 -8 -8 -7 -7 -7 -7 --------- Run | Yrd Mat Sub Mat Gar Mat Gar Fac Gar Fac Gar Total 7094 | . 1464 2025 286 746 316 264 469 702 289 533 Wait 1481 | . 918 181 4 14 41 15 82 34 8 184 Move 4793 | . 455 1758 191 660 210 203 339 533 239 205 Hop . | . . . . . . . . . . . Pick Up 60 | . 14 6 3 8 4 3 7 6 7 2 Fast Attach 30 | . 1 2 8 . 1 . 3 3 1 11 Attach 43 | . 4 8 3 3 2 6 1 6 2 8 Detach 9 | . 4 1 . 1 . . . . 1 2 Swap 66 | . 1 6 9 4 9 3 8 8 9 9 Drop 57 | . 7 8 3 4 8 4 6 5 8 4 Fire 454 | . 57 54 64 50 39 26 18 50 4 92 Melee 21 | . . . . . . 2 3 13 . 3 Ram . | . . . . . . . . . . . Kick . | . . . . . . . . . . . Crush 3 | . 3 . . . . . . . . . Escape Stasis 61 | . . . . . . . . 40 8 13 Rewire 6 | . . 1 . . . 1 . 4 . . Trap . | . . . . . . . . . . . Miscellaneous 10 | . . . 1 2 2 1 2 . 2 . Route ------- -11/Scrapyard -10/Materials (discovered 5 exits: [*Mat x3] / [*Min] / [*Sub]) -10/Subcaves (discovered 3 exits: *Mat x2 / [*Rec]) -8/Materials (discovered 2 exits: *Fac / Gar) -8/Garrison (discovered 3 exits: *Mat x3) -8/Materials -8/Garrison (discovered 4 exits: *Fac x3 / [Mat]) -7/Factory (discovered 4 exits: [*Fac] / [*Sto] / [*Low] / Gar) -7/Garrison (discovered 2 exits: *Fac x2) -7/Factory (discovered 3 exits: [*Fac] / [*Sto] / Gar) -7/Garrison History --------- Turn | Location | Event 1 | -11/Scrapyard | Discovered new exit (range 0) 1 | -11/Scrapyard | Entered Materials 302 | -10/Materials | Build established: Mutant 311 | -10/Materials | Discovered new exit (range 9) 603 | -10/Materials | Discovered new exit (range 7) 915 | -10/Materials | Discovered new exit (range 6) 985 | -10/Materials | Discovered new exit (range 16) 1808 | -10/Materials | Discovered new exit (range 9) 1827 | -10/Materials | Entered Subcaves 2601 | -10/Subcaves | Discovered new exit (range 6) 2966 | -10/Subcaves | Discovered new exit (range 3) 2967 | -10/Subcaves | Core integrity fell below 50% 3065 | -10/Subcaves | Shifting Twisted Machinery released Battle Cannon 3101 | -10/Subcaves | Shifting Twisted Machinery released Sub. Monowheel 3124 | -10/Subcaves | Discovered new exit (range 15) 3650 | -10/Subcaves | Shifting Twisted Machinery released Battle Cannon 3652 | -10/Subcaves | Shifting Twisted Machinery released Battle Cannon 4004 | -10/Subcaves | A swath of the cavern ceiling suddenly collapsed 4143 | -10/Subcaves | Ambushed by Subdweller buried in earth 4150 | -10/Subcaves | Core integrity fell below 20% 4990 | -10/Subcaves | Entered Materials 4990 | -8/Materials | Evolved 4 slots: Propulsion x2, Utility x2 5277 | -8/Materials | Garrison activated, responded to threat 5497 | -8/Materials | Discovered new exit (range 16) 5540 | -8/Materials | Identified exit to Garrison 5540 | -8/Materials | Entered Garrison 5618 | -8/Garrison | Triggered checkpoint 5691 | -8/Garrison | Build established: Scavenger-Mutant 5804 | -8/Garrison | Installed Relay Interface Framework 5830 | -8/Garrison | Garrison Relay disabled 5884 | -8/Garrison | Discovered new exit (range 12) 6042 | -8/Garrison | Discovered new exit (range 14) 6130 | -8/Garrison | Garrison Relay disabled 6312 | -8/Garrison | Rescued a captive Derelict 6389 | -8/Garrison | Garrison Relay disabled 6469 | -8/Garrison | Discovered new exit (range 12) 6783 | -8/Garrison | Entered Materials 7122 | -8/Materials | Build established: Bothacker-Mutant 7199 | -8/Materials | Garrison activated, responded to threat 7303 | -8/Materials | Identified exit to Garrison 7303 | -8/Materials | Entered Garrison 7380 | -8/Garrison | Garrison Relay disabled 7461 | -8/Garrison | Discovered new exit (range 44) 7461 | -8/Garrison | Discovered new exit (range 39) 7461 | -8/Garrison | Discovered new exit (range 53) 7461 | -8/Garrison | Discovered new exit (range 58) 7553 | -8/Garrison | Lost 3 parts (1n1u1w) 7643 | -8/Garrison | Expanded RIF knowledge: Hotswap 7736 | -8/Garrison | Entered Factory 7736 | -7/Factory | Accompanied by 1 ally 7736 | -7/Factory | Evolved 2 slots: Propulsion x1, Utility x1 7819 | -7/Factory | Discovered new exit (range 15) 7956 | -7/Factory | Discovered new exit (range 15) 8261 | -7/Factory | Discovered new exit (range 16) 8361 | -7/Factory | Identified exit to Garrison 8361 | -7/Factory | Entered Garrison 8361 | -7/Garrison | Accompanied by 2 allies 8410 | -7/Garrison | Expanded RIF knowledge: Command Fork 8427 | -7/Garrison | Triggered checkpoint 8481 | -7/Garrison | Garrison Relay disabled 8671 | -7/Garrison | Triggered checkpoint 8671 | -7/Garrison | Triggered checkpoint 8695 | -7/Garrison | Triggered checkpoint 8716 | -7/Garrison | Triggered checkpoint 8760 | -7/Garrison | Discovered new exit (range 10) 8785 | -7/Garrison | Triggered checkpoint 8817 | -7/Garrison | Triggered checkpoint 8842 | -7/Garrison | Garrison Relay disabled 8959 | -7/Garrison | Triggered checkpoint 8988 | -7/Garrison | Garrison Relay disabled 9003 | -7/Garrison | Lost 3 parts (2n1u) 9047 | -7/Garrison | Spotted B-75 Beast 9049 | -7/Garrison | Discovered new exit (range 14) 9075 | -7/Garrison | Allies destroyed B-75 Beast 9104 | -7/Garrison | Lost 4 allies 9219 | -7/Garrison | Triggered checkpoint 9383 | -7/Garrison | Entered Factory 9383 | -7/Factory | Accompanied by 2 allies 9733 | -7/Factory | Fabricated O-24 Administrator? 9745 | -7/Factory | Discovered new exit (range 13) 9793 | -7/Factory | Discovered new exit (range 16) 9849 | -7/Factory | Lost 3 parts (1p2n) 9962 | -7/Factory | Identified exit to Garrison 9962 | -7/Factory | Entered Garrison 9962 | -7/Garrison | Accompanied by 3 allies 10048 | -7/Garrison | Heavy support dispatched to Factory 10408 | -7/Garrison | Triggered checkpoint 10420 | -7/Garrison | Expanded RIF knowledge: Robot Detection 10603 | -7/Garrison | Lost 6 allies 10689 | -7/Garrison | Heavy support dispatched to Factory 10719 | -7/Garrison | Core integrity fell below 50% 10765 | -7/Garrison | Lost 4 parts (1n1u2w) 10788 | -7/Garrison | Core integrity fell below 20% 10814 | -7/Garrison | Destroyed by H-61 Shepherd with Heavy Assault Cannon Last Messages --------------- 10758_ F| O1:FR,&WT3KUWI73#DYJ 10771_ Knocked back. 10774_ Acquired 2 matter. 10776_ Penetrated by Slug. 10776_ Angular Momentum Engine destroyed. 10776_ Cmb. Airjet blasted off. 10776_ Knocked back. 10782_ Med. Armor Plating destroyed. 10782_ Cmb. Airjet blasted off. 10782_ Knocked back. 10787_ Penetrated by Slug. 10787_ Knocked back. 10792_ Relay Coupler [NC] destroyed. 10792_ Blade Saw destroyed. 10792_ Critical hit (Blast). 10792_ Knocked back. 10795_ Acquired 31 matter. 10797_ Cmb. Airjet destroyed. 10797_ Knocked back. 10808_ Acquired Segregator. Map ----- +----------------------------------------------------+ | ?????????????????????????????????????? | | ?????????????????????????????????????? | | ?????????????????????????????????????? | | ?????????????????????????????????????? | | ?????????????????????????????????????? | | ?????????????????????????????????????? | | ?????????????????????????????????????? | | ???????????????????????????gg????????? | | ?????????????????????????????????????? | | ?????????????????????????????????????? | | ?????????????????????????????????????? | | ?????????????????????????????????????? | | ?????????????????????????????????????? | | ?????????????????????????????????????? | | ?????????????????????????????????????? | | ?????????????????????????????????????? | | ?????????????????????????????????????? | | ?????????????????????????????????????? | | ?????????????????????????????????????? | | ?????????????????????????????????????? | | ?????????????????????????????????????? | | ???????#####?####????????????????????? | | ??????## /###*|###??????????????????? | | ??????# [/===H#%#################### | | ??????# ##;!==!! *= !%%/[%[=[ %" | | ??????# # # @%!#=##"############ | | ??????#?####%!!%# ####??????????# ### | | ???????????###### ###???????????# #?? | | ????????????????# # #???????????# #?? | | ????????????????# %#????????????# #?? | | ????????????????# "#???#####????# #?? | | ????????????????# "#???#! !#????# #?? | | ????????????????# ##???#! !#????# #?? | | ????"" """""##" ####### ####### ### | | ????""" % + | | ????""" #####!! | | ????"" ????# ########### #### | | ????""" ?????# =#?????????# #??? | | ?????"" ??????# ##????????# #??? | | ?????" """???????#%] #????????# #?? | | ????# ???????????#! !#????????# ###+ | | ?????""????????????#!]%#????????#=[! = | | ???????????????????# #????????#####! | | ???????????????????#% !#????????????# | | ???????????????????#%!##?????######## | | ?????????????????### #??????#"""" ## | | ?????????????????# #??????#" | | ?????????????????# #??????#"""" ## | | ?????????????????# #??????######## | | ?????????????????### #?????????????# | +----------------------------------------------------+ Best States ------------- Heat Dissipation 61 Energy Generation 18 Energy Capacity 300 Matter Stores 300 Matter Capacity 300 Sight Range 16 Terrain Scan Density 10 Armor Coverage 950 Resistance: EM 15 Evasion (%) 55 Recoil Reduction 4 Relay Coupler Types 3 Relay Coupler Value 64 Item Schematics ----------------- None Robot Schematics ------------------ None Fabricated ------------ O-24 Administrator | x1 | -7/Factory | Preloaded Alien Tech Used ----------------- None Achievements -------------- None Challenges ------------ None Game ------ Seed CargoHybridDatajack Manual? 0 Play Time 01:05:32 Cumulative 147.9 hours Start 2024.11.25 @ 08:58:08 End 2024.11.25 @ 10:03:35 Sessions 1 Manual Loads 0 Difficulty Rogue Special Mode None Game No. 133 Rogue 114 Adventurer 16 Explorer 3 Win Type - Total 10 Types 8/0/1/1/0/0/0/0/0 Lore% 37 Gallery% 68 Achievement% 59 Wizard Run 0 Options --------- Layout 2 ASCII 0 Keyboard 0 Movement Numpad Keybinds 1 Fullscreen 1 Font 24/Terminus Map View 50x44 Zoom Use 0% Tactical HUD 1 Map Filters NONE Filters NONE Steam 1 RUN: 97a53ebf-bc47-492c-8628-acd431dc3b67